[Event "FIDE WTC-KO 202"]
[Site "Jerusalem"]
[Date "2022.11.23"]
[Round "3.1"]
[White "Vidit, Santosh Gujrathi"]
[Black "Vachier-Lagrave, Maxime"]
[Result "1/2-1/2"]
[ECO "D40"]
[WhiteElo "2662"]
[BlackElo "2775"]
[Annotator "TA"]
[PlyCount "89"]
[EventDate "2022.11.20"]
[EventType "team-tourn"]
[EventCountry "ISR"]
[SourceTitle "playchess.com"]
[Source "ChessBase"]
[SourceQuality "1"]
[TimeControl "180+2"]

{[%evp 12,89,20,19,14,0,27,35,50,52,44,38,30,37,49,14,34,36,52,49,61,68,68,61,64,52,49,9,13,10,16,11,135,133,146,57,45,6,35,35,35,31,47,20,21,0,0,0,0,0,0,0,0,0,0,0,0,0,0,0,0,0,0,0,0,0,0,0,0,0,0,0,0,0,0,0,0,0,0,0]} 1. Nf3 {[%emt 0:00:01]} c5 {[%emt 0:00:04]} 2. c4 {[%emt 0:00:02]} Nf6 {[%emt 0:00:03]} 3. Nc3 {[%emt 0:00:03]} Nc6 {[%emt 0:00:02]} 4. e3 {[%emt 0:00:03]} e6 {[%emt 0:00:01]} 5. d4 {[%emt 0:00:02]} d5 {[%emt 0:00:01]} 6. a3 {[%emt 0:00:02]} dxc4 {[%emt 0:00:09]} 7. Bxc4 {[%emt 0:00:02]} a6 {[%emt 0:00:01] D40: Queen's Gambit Declined: Semi-Tarrasch with 5 e3.} 8. Bd3 {[%emt 0:00:06] [#]} b6 $146 {[%emt 0:00:52]} ({Predecessor:} 8... b5 9. dxc5 Bxc5 10. b4 Be7 11. O-O Bb7 12. Bb2 O-O 13. Ne4 Nxe4 14. Bxe4 f5 15. Bb1 Qxd1 16. Rxd1 {1-0 (58) Ding,L (2806)-Nakamura,H (2760) Madrid 2022}) 9. dxc5 {[%emt 0:00:13]} Bxc5 {[%emt 0:00:02] White is slightly better.} 10. b4 {[%emt 0:00:01]} Be7 {[%emt 0:00:02]} 11. Bb2 {[%emt 0:00:05]} Bb7 {[%emt 0:00:01]} 12. O-O {[%emt 0:00:04]} O-O {[%emt 0:00:04]} 13. Rc1 {[%emt 0:00:06]} Rc8 {[%emt 0:00:22]} 14. Qe2 {[%emt 0:00:13]} b5 {[%emt 0:00:01]} 15. Rfd1 {[%emt 0:00:19][%cal Od3b5] Strongly threatening Bxb5!} (15. Ne4 {looks sharper.} Nxe4 16. Bxe4 Bf6 17. Rfd1) 15... Qb6 {[%emt 0:00:01]} 16. Ne4 {[%emt 0:00:14]} Nxe4 {[%emt 0:00:41]} 17. Bxe4 {[%emt 0:00:01]} Rfd8 {[%emt 0:00:03] Prevents Rd7.} 18. h4 {[%emt 0:00:36] White has more active pieces.} h6 {[%emt 0:00:03] Prevents Ng5.} 19. h5 {[%emt 0:00:27]} Rxd1+ {[%emt 0:00:27]} 20. Rxd1 {[%emt 0:00:01]} Rd8 {[%emt 0:00:05]} (20... Qc7 {is more complex.} 21. Rc1 Qb8 22. Rc2 Na5) 21. Rc1 {[%emt 0:00:06]} Bf8 {[%emt 0:00:11] [#]} (21... Bf6 $11) 22. Bb1 $1 $16 {[%emt 0:00:14]} Ne7 {[%emt 0:00:08] [#]} 23. Bd4 {[%emt 0:00:22]} ({But not} 23. Qc2 f5 $14) (23. Be5 $1 $16 {[%cal Re5c7]} Nd5 24. e4) 23... Qd6 $14 {[%emt 0:00:01]} 24. Bc5 {[%emt 0:00:08]} (24. Qd3 $5 {[%cal Rd3h7]} f5 25. Ba2 $14) 24... Qd5 {[%emt 0:00:04]} (24... Qd7 {simplifies} 25. Qc2 Nf5 26. e4 Bxc5 27. exf5 Bxf3 28. bxc5 Bc6) 25. Qc2 {[%emt 0:00:06][%csl Gb1][%cal Rc2h7]} (25. e4 {simplifies} Qc6 26. Be3 Qd6 27. Qc2) 25... Qf5 {[%emt 0:00:02] Inhibits Qh7+.} 26. Qxf5 {[%emt 0:00:06]} Nxf5 {[%emt 0:00:02]} 27. Bxf8 {[%emt 0:00:03]} Bxf3 {[%emt 0:00:02] The position is equal.} 28. gxf3 {[%emt 0:00:05]} Kxf8 {[%emt 0:00:01]} 29. Bxf5 {[%emt 0:00:04]} exf5 {[%emt 0:00:01][%mdl 4096] Endgame KR-KR} 30. Rc6 {[%emt 0:00:01]} f4 {[%emt 0:00:06]} 31. exf4 {[%emt 0:00:04]} Rd5 {[%emt 0:00:01]} 32. Rxa6 {[%emt 0:00:02]} Rxh5 {[%emt 0:00:02]} 33. Ra5 {[%emt 0:00:01]} g6 {[%emt 0:00:05]} 34. Kg2 {[%emt 0:00:01]} Rf5 {[%emt 0:00:02]} 35. Kg3 {[%emt 0:00:01]} h5 {[%emt 0:00:02]} 36. Ra7 {[%emt 0:00:02]} Rd5 {[%emt 0:00:02]} 37. Rc7 {[%emt 0:00:02]} Rd3 {[%emt 0:00:02]} 38. Rc5 {[%emt 0:00:01]} Rxa3 {[%emt 0:00:01]} 39. Rxb5 {[%emt 0:00:01]} Kg7 {[%emt 0:00:02]} 40. Rc5 {[%emt 0:00:02]} Rb3 {[%emt 0:00:01]} 41. b5 {[%emt 0:00:01]} Rb4 {[%emt 0:00:02]} 42. Rd5 {[%emt 0:00:02]} Kf6 {[%emt 0:00:08]} 43. Rc5 {[%emt 0:00:02]} Kg7 {[%emt 0:00:01]} 44. Rd5 {[%emt 0:00:03]} Kf6 {[%emt 0:00:01]} 45. Rc5 {[%emt 0:00:03] Weighted Error Value: White=0.10 (very precise) /Black=0.10 (very precise)} 1/2-1/2

[Event "FIDE WTC-KO 202"]
[Site "Jerusalem"]
[Date "2022.11.23"]
[Round "3.1"]
[White "Moussard, Jules"]
[Black "Nihal, Sarin"]
[Result "0-1"]
[ECO "B06"]
[WhiteElo "2634"]
[BlackElo "2616"]
[Annotator "TA"]
[PlyCount "159"]
[EventDate "2022.11.20"]
[EventType "team-tourn"]
[EventCountry "ISR"]
[SourceTitle "playchess.com"]
[Source "ChessBase"]
[SourceQuality "1"]
[TimeControl "180+2"]

{[%evp 11,159,65,67,51,48,50,52,32,67,77,68,42,54,0,56,0,0,0,18,10,26,-11,0,0,-4,-176,-170,-185,-175,-179,-185,-175,-182,-182,-182,-182,-170,-167,-156,-29985,-29986,-29986,-468,-455,-445,-437,-447,-449,-172,-161,-133,-266,-270,-264,-252,-369,-195,-195,-197,-190,-187,-196,-191,-181,-191,-208,-185,-216,-217,-217,-208,-223,-204,-208,-132,-126,-91,-93,-93,-140,-91,-91,-91,-161,-168,-159,-88,-84,-20,-91,-98,-172,-179,-221,-154,-168,-16,-8,-8,-139,-139,-137,-138,-677,-50,-55,-8,-112,0,-62,0,-91,-88,-121,-8,-100,-100,-121,-108,-264,-188,-190,-190,-387,-350,-316,0,-658,-618,-941,-824,-841,-510,-29983,-29984,-29988,-29989,-29989,-29990,-29994,-29988,-29991,-29989,-29988,-29987,-29987,-29988,-29988,-29987,-29996]} 1. e4 {[%emt 0:00:01]} g6 {[%emt 0:00:01]} 2. d4 {[%emt 0:00:01]} Bg7 {[%emt 0:00:01]} 3. Nc3 {[%emt 0:00:01]} d6 {[%emt 0:00:01]} 4. Be3 {[%emt 0:00:01]} a6 {[%emt 0:00:01]} 5. h4 {[%emt 0:00:02]} h6 {[%emt 0:00:00]} 6. Qd2 {[%emt 0:00:04]} Nd7 {[%emt 0:00:02]} 7. O-O-O {[%emt 0:00:12]} b5 {[%emt 0:00:01]} 8. Kb1 {[%emt 0:00:03]} Bb7 {[%emt 0:00:02]} 9. f3 {[%emt 0:00:01]} Rc8 {[%emt 0:00:02]} 10. Nh3 {[%emt 0:00:23]} c5 {[%emt 0:00:02]} 11. dxc5 {[%emt 0:00:02]} Nxc5 {[%emt 0:00:02]} 12. Bd4 {[%emt 0:00:12]} (12. g4 $14) 12... Nf6 {[%emt 0:00:04]} (12... Bxd4 $1 $11 13. Qxd4 Nf6) 13. a3 {[%emt 0:00:29]} ({White should try} 13. Nd5 $14) 13... Ne6 $11 {[%emt 0:00:28]} 14. Be3 {[%emt 0:00:01]} Nd7 {[%emt 0:00:02]} 15. Nd5 {[%emt 0:00:05]} (15. Ne2 {is interesting.} Qc7 16. h5 g5 17. Ng3) 15... Ndc5 {[%emt 0:00:09]} 16. c3 {[%emt 0:00:41]} (16. b3 {is more complex.} h5 17. g3 Nd7 18. Nf2) 16... Na4 {[%emt 0:00:04]} 17. Rc1 {[%emt 0:00:02]} Nec5 {[%emt 0:00:16]} 18. Qd1 $2 {[%emt 0:00:08]} (18. Ka2 $1 $11 {and White stays safe.}) 18... Bxd5 {[%emt 0:01:07]} 19. exd5 {[%emt 0:00:01]} Nxb2 $1 {[%emt 0:00:05]} 20. Kxb2 {[%emt 0:00:03]} Na4+ {[%emt 0:00:00]} 21. Ka2 {[%emt 0:00:15]} (21. Ka1 $2 Nxc3 22. Qb3 Qa5 $19) 21... Nxc3+ {[%emt 0:00:39]} (21... Bxc3 22. Qc2 $16) 22. Rxc3 {[%emt 0:00:01]} Rxc3 {[%emt 0:00:00]} (22... Bxc3 23. Nf4 $11) 23. Bd2 {[%emt 0:00:25]} Qa5 {[%emt 0:00:11]} 24. Bxc3 {[%emt 0:00:03]} Qxc3 {[%emt 0:00:01]} 25. Qb1 $2 {[%emt 0:00:02]} (25. Qc1 $17 Qxc1 26. Bxb5+ axb5 27. Rxc1) 25... Qd2+ {[%emt 0:00:06]} 26. Kb3 {[%emt 0:00:01]} Qxd5+ {[%emt 0:00:06]} (26... O-O $142 27. Qc2 Qxd5+ 28. Bc4 bxc4+ 29. Ka2 c3+ 30. Ka1 Qc5 31. Ka2 Qc4+ 32. Kb1 Rb8+ 33. Kc1 Rb2 34. Qxb2 cxb2+ 35. Kd2 Bc3+ 36. Kc2 b1=R 37. g4 Bd4+ 38. Kxb1 Qb3+ 39. Kc1 Be3#) 27. Kc2 $19 {[%emt 0:00:09]} O-O {[%emt 0:00:05]} 28. Bd3 {[%emt 0:00:01]} Rc8+ {[%emt 0:00:07]} 29. Kd2 {[%emt 0:00:01]} Rc3 $2 {[%emt 0:00:03]} (29... Bc3+ 30. Ke2 Qe5+ 31. Kd1 Ba5) 30. Nf4 $19 {[%emt 0:00:09]} Qc5 {[%emt 0:00:06]} 31. Ne2 {[%emt 0:00:01]} (31. Rc1 $17 {might work better.}) 31... Rxa3 $19 {[%emt 0:00:02]} (31... Qf2 32. Qg1 Qxg1 33. Rxg1 Rxa3 34. h5 $15) 32. Rc1 {[%emt 0:00:02]} Qd5 $1 {[%emt 0:00:04]} (32... Qf2 33. Qb4 Ra2+ 34. Rc2 Rxc2+ 35. Bxc2 $17) 33. h5 {[%emt 0:00:03]} (33. Nf4 {keeps fighting.} Qd4 34. Ne2 Qxh4 35. f4) 33... Qg5+ {[%emt 0:00:02]} ({Not} 33... Qxh5 34. Qb4 Ra2+ 35. Rc2 Rxc2+ 36. Kxc2 $17) (33... gxh5 34. Nf4 Qd4 35. Ne2 $11) (33... Be5 $142 {Strongly threatening ...Rb3.} 34. Ke3 g5) 34. f4 $19 {[%emt 0:00:10]} Qxh5 {[%emt 0:00:01]} (34... Qxg2 35. Qb4 Ra2+ 36. Rc2 Rxc2+ 37. Kxc2 $17) 35. Qb4 {[%emt 0:00:03]} Ra2+ {[%emt 0:00:01]} 36. Rc2 {[%emt 0:00:01]} Rxc2+ {[%emt 0:00:02]} 37. Kxc2 {[%emt 0:00:05]} Qd5 {[%emt 0:00:01]} 38. g3 {[%emt 0:00:06]} e6 {[%emt 0:00:06]} 39. Qa3 {[%emt 0:00:02]} Qc6+ $1 {[%emt 0:00:00]} 40. Kd1 {[%emt 0:00:01]} Bf6 {[%emt 0:00:03]} 41. Qb4 {[%emt 0:00:04]} Kg7 {[%emt 0:00:01]} 42. g4 {[%emt 0:00:02]} Qf3 {[%emt 0:00:02]} 43. Qxd6 {[%emt 0:00:04]} Qxg4 {[%emt 0:00:01]} (43... h5 {looks sharper.} 44. gxh5 gxh5 45. Kc2 h4) 44. Qxa6 {[%emt 0:00:01]} b4 {[%emt 0:00:02]} 45. Qc4 {[%emt 0:00:01]} (45. Qb7 $142) 45... h5 {[%emt 0:00:04]} ({Better is} 45... Qf3 46. Kd2 Qb7) 46. Qxb4 $17 {[%emt 0:00:02] [#]} h4 $1 {[%emt 0:00:02]} 47. Qe4 {[%emt 0:00:02] [#]} (47. Qb7 $17) 47... h3 $1 $19 {[%emt 0:00:02]} 48. Qh1 {[%emt 0:00:01]} Be7 {[%emt 0:00:03]} (48... e5 $142 49. Qe4 h2 50. fxe5 Qg1+ 51. Nxg1 hxg1=Q+ 52. Qe1 Qg4+ 53. Kc2 Qa4+ 54. Kb2 Be7) 49. Be4 $17 {[%emt 0:00:02]} Bd6 {[%emt 0:00:01]} (49... Qh4 $17 50. Qe1 Qh8 51. Qc3+ Bf6) 50. Qf3 {[%emt 0:00:02]} (50. Qg1 $11 Qxg1+ 51. Nxg1) 50... Qh4 $17 {[%emt 0:00:01]} (50... Qxf3 {simplifies} 51. Bxf3 Kf6 52. Bg4 h2) 51. Kd2 {[%emt 0:00:04]} (51. Qc3+ $17 Kg8 52. Qg3 Qxg3 53. Nxg3) 51... h2 $19 {[%emt 0:00:01]} 52. Kd3 {[%emt 0:00:03]} f5 {[%emt 0:00:01]} 53. Ba8 {[%emt 0:00:01]} e5 $2 {[%emt 0:00:02]} (53... Qe1 $19 {Hoping for ...Qb1+.} 54. Qb7+ Kf6 55. Qb2+ e5 56. fxe5+ Bxe5) 54. fxe5 {[%emt 0:00:02]} Bxe5 {[%emt 0:00:00]} 55. Qg2 {[%emt 0:00:03]} (55. Qd5 $11 Ba1 56. Qc6) 55... Qa4 $17 {[%emt 0:00:03]} 56. Qb7+ {[%emt 0:00:02]} Kh6 {[%emt 0:00:01]} 57. Qc6 $2 {[%emt 0:00:03][%mdl 8192]} (57. Kd2 $17) 57... Qb3+ $2 {[%emt 0:00:02]} (57... Qd1+ $19 58. Ke3 Bb8) 58. Kd2 $15 {[%emt 0:00:01]} Qb2+ {[%emt 0:00:00]} (58... Qb4+ $15 {is more appropriate.} 59. Kc2 Qa3) 59. Kd3 {[%emt 0:00:00]} (59. Ke1 $11 {remains equal.}) 59... Qb3+ {[%emt 0:00:05]} (59... Qa3+ $17 60. Kc2 Qa7) 60. Kd2 $15 {[%emt 0:00:01]} Qb2+ {[%emt 0:00:04]} 61. Kd3 {[%emt 0:00:00]} Qa3+ {[%emt 0:00:01]} ({Wrong is} 61... Qb3+ $2 62. Kd2 $19) 62. Kd2 {[%emt 0:00:01]} Qa2+ {[%emt 0:00:02]} (62... Qa1 $17 {With the idea ...Bf6.} 63. Qg2 Qa5+ 64. Ke3 Qc5+ 65. Kd2 Qb4+ 66. Ke3 Qc5+ 67. Kd2 Qa5+ 68. Ke3 Qc5+) 63. Kd3 {[%emt 0:00:01]} (63. Ke1 $11 {keeps the balance.}) 63... Qa7 {[%emt 0:00:04]} ({Inferior is} 63... Qb3+ 64. Kd2 $17) 64. Qg2 {[%emt 0:00:03]} Qa3+ {[%emt 0:00:01]} 65. Kc4 $2 {[%emt 0:00:01]} (65. Kd2 $17 {was called for.}) 65... Qe3 {[%emt 0:00:02]} 66. Bf3 {[%emt 0:00:06]} Kg7 {[%emt 0:00:06]} 67. Kd5 $2 {[%emt 0:00:02]} (67. Qf1 {was worth a try.}) 67... Kf6 $19 {[%emt 0:00:02]} 68. Kc4 {[%emt 0:00:02]} g5 $2 {[%emt 0:00:01]} ({Black should play} 68... Qd2 $19 {...Qc2+ is the strong threat.} 69. Kb5 Qd3+ 70. Kb6 g5) 69. Ba8 $2 {[%emt 0:00:01][%mdl 8192]} (69. Qh3 $11) 69... g4 $19 {[%emt 0:00:01]} 70. Qc6+ {[%emt 0:00:04]} Kg5 {[%emt 0:00:01]} 71. Qg2 {[%emt 0:00:02]} f4 {[%emt 0:00:06]} 72. Qf1 {[%emt 0:00:04]} (72. Nxf4 $19 Qc3+ 73. Kb5 Qb3+ 74. Kc5 Qe3+ 75. Kc4 Qc3+ 76. Kb5 Qb3+ 77. Kc5 Qe3+ 78. Kb5 Bxf4 79. Kc4) 72... f3 {[%emt 0:00:01]} 73. Nc1 {[%emt 0:00:02]} Qg1 {[%emt 0:00:02]} 74. Qd3 {[%emt 0:00:02]} Qxc1+ {[%emt 0:00:02]} 75. Kd5 {[%emt 0:00:01]} Qf4 {[%emt 0:00:02]} 76. Qh7 {[%emt 0:00:02]} Qd4+ {[%emt 0:00:01]} 77. Kc6 {[%emt 0:00:01]} Qd6+ {[%emt 0:00:01]} 78. Kb5 {[%emt 0:00:01]} Qb8+ {[%emt 0:00:03]} 79. Bb7 {[%emt 0:00:06]} h1=Q {[%emt 0:00:07]} 80. Qg7+ {[%emt 0:00:05]} 0-1

[Event "FIDE WTC-KO 202"]
[Site "Jerusalem"]
[Date "2022.11.23"]
[Round "3.1"]
[White "Narayanan, S.L."]
[Black "Fressinet, Laurent"]
[Result "1-0"]
[ECO "D37"]
[WhiteElo "2588"]
[BlackElo "2684"]
[Annotator "TA"]
[PlyCount "129"]
[EventDate "2022.11.20"]
[EventType "team-tourn"]
[EventCountry "ISR"]
[SourceTitle "playchess.com"]
[Source "ChessBase"]
[SourceQuality "1"]
[TimeControl "180+2"]

{[%evp 10,129,0,-6,3,-10,-8,-29,8,22,31,22,25,33,24,30,25,28,28,27,52,54,55,27,21,23,29,32,81,54,54,53,51,32,44,22,18,19,43,32,29,25,43,38,42,24,24,37,41,38,45,17,64,64,64,56,90,50,50,50,50,50,83,63,116,23,37,37,37,0,37,0,122,112,99,0,0,0,8,8,11,0,0,0,0,0,0,0,132,125,125,125,29968,29969,29969,29970,29970,29971,29971,0,0,0,0,0,0,0,29976,29977,0,0,29978,29979,29979,29980,29980,29981,29981,29982,29982,29983,29983,29984]} 1. d4 {[%emt 0:00:01]} Nf6 {[%emt 0:00:01]} 2. c4 {[%emt 0:00:01]} e6 {[%emt 0:00:01]} 3. Nf3 {[%emt 0:00:01]} d5 {[%emt 0:00:01]} 4. Nc3 {[%emt 0:00:01]} Be7 {[%emt 0:00:01]} 5. e3 {[%emt 0:00:01]} O-O {[%emt 0:00:05]} 6. b3 {[%emt 0:00:02]} c5 {[%emt 0:00:08] D37: Queen's Gambit Declined: 5 Bf4.} 7. cxd5 {[%emt 0:00:05]} cxd4 {[%emt 0:00:12]} 8. Qxd4 {[%emt 0:00:10]} (8. Nxd4 {simplifies} Nxd5 9. Bb2 Qa5 10. Qd2) 8... Nxd5 {[%emt 0:00:07] Black has an edge.} 9. Nxd5 {[%emt 0:00:13]} exd5 {[%emt 0:00:03]} (9... Qxd5 {simplifies} 10. Qxd5 exd5 11. Bb2 Be6) 10. Bb2 {[%emt 0:00:01][%csl Gb2][%cal Rd4g7]} Bf6 {[%emt 0:00:01]} 11. Qd2 {[%emt 0:00:01]} Nc6 {[%emt 0:00:10]} 12. Be2 {[%emt 0:00:07]} Bxb2 {[%emt 0:00:34]} 13. Qxb2 {[%emt 0:00:01]} Qa5+ {[%emt 0:00:01]} 14. Qd2 {[%emt 0:00:12]} Qxd2+ {[%emt 0:00:01]} 15. Kxd2 {[%emt 0:00:02] [#]} Rd8 $146 {[%emt 0:00:15]} ({Predecessor:} 15... Bg4 16. Rhd1 Rac8 17. Rac1 Rfd8 18. h3 Be6 19. Bb5 Ne7 20. Nd4 Kf8 21. Bd3 h6 {½-½ (54) Svidler,P (2753)-Yu,Y (2759) Shenzhen 2018}) 16. Nd4 {[%emt 0:00:19]} Nxd4 {[%emt 0:00:01]} 17. exd4 {[%emt 0:00:01]} Bf5 {[%emt 0:00:08]} 18. g4 {[%emt 0:00:03]} Be4 {[%emt 0:00:12]} (18... Bd7 $14) 19. f3 {[%emt 0:00:09]} Bg6 {[%emt 0:00:02]} 20. Rhc1 {[%emt 0:00:28]} Rac8 {[%emt 0:00:03] Inhibits Rc7.} 21. b4 {[%emt 0:00:08]} Kf8 {[%emt 0:00:09]} 22. Rc5 {[%emt 0:00:38]} b6 {[%emt 0:00:02]} 23. Rcc1 {[%emt 0:00:01]} Ke7 {[%emt 0:00:19]} 24. Ba6 {[%emt 0:00:01]} (24. h4 $5 {[%cal Rh4h5]} h5 25. Ba6 Rxc1 26. Rxc1 $14) 24... Rxc1 {[%emt 0:00:01]} 25. Rxc1 $14 {[%emt 0:00:01][%mdl 4096] Endgame KRB-KRB} f6 {[%emt 0:00:15]} 26. Bb5 {[%emt 0:00:05]} Be8 {[%emt 0:00:14]} 27. Re1+ {[%emt 0:00:16]} Kf7 {[%emt 0:00:05]} 28. Bd3 {[%emt 0:00:04]} Bd7 {[%emt 0:00:07]} 29. h4 {[%emt 0:00:03][%cal Bh2h4,Bh4h5][%mdl 32]} (29. Bxh7 g6 30. h4 Rh8 31. Bxg6+ Kxg6 $17) 29... g6 {[%emt 0:00:01]} 30. h5 {[%emt 0:00:10]} Rc8 {[%emt 0:00:01]} (30... gxh5 $11 {is more appropriate.} 31. gxh5 (31. Bxh7 hxg4 32. fxg4 Bxg4 $15) 31... h6) 31. b5 {[%emt 0:00:04]} Re8 {[%emt 0:00:12]} 32. Rh1 {[%emt 0:00:01]} Kg7 {[%emt 0:00:00]} 33. Rc1 {[%emt 0:00:01]} Rc8 {[%emt 0:00:01] Inhibits Rc7.} 34. Re1 {[%emt 0:00:01]} Re8 {[%emt 0:00:00] Inhibits Re7+.} 35. Rh1 {[%emt 0:00:01]} Rc8 {[%emt 0:00:09]} 36. a4 {[%emt 0:00:01]} Rb8 {[%emt 0:00:03]} ({Black should play} 36... f5 $14) 37. Rc1 {[%emt 0:00:01]} (37. h6+ $16 Kf8 38. Rc1) 37... Rc8 $11 {[%emt 0:00:01]} 38. Re1 {[%emt 0:00:01]} Re8 {[%emt 0:00:01] Against Re7+} 39. Rc1 {[%emt 0:00:02]} Rc8 {[%emt 0:00:00] Against Rc7} 40. Rh1 {[%emt 0:00:00]} (40. Ra1 $14) 40... Rb8 $1 $16 {[%emt 0:00:02]} 41. h6+ $1 {[%emt 0:00:10]} Kf7 {[%emt 0:00:02]} 42. a5 {[%emt 0:00:01]} (42. Ra1 $16) 42... bxa5 $11 {[%emt 0:00:14]} 43. Rc1 {[%emt 0:00:00]} Bxb5 {[%emt 0:00:03]} 44. Rc7+ {[%emt 0:00:02]} Ke6 $1 {[%emt 0:00:04]} 45. Bxb5 {[%emt 0:00:04]} Rxb5 {[%emt 0:00:01]} 46. Rxh7 {[%emt 0:00:01][%cal Od2c2] Black must now prevent Kc2! KR-KR} Rb2+ {[%emt 0:00:01]} 47. Ke3 {[%emt 0:00:04][%cal Oh7g7]} Rh2 {[%emt 0:00:03]} 48. Rh8 {[%emt 0:00:12]} g5 {[%emt 0:00:07]} (48... Kf7 $11 {remains equal.}) 49. h7 $16 {[%emt 0:00:01] Hoping for Re8+.} Kf7 {[%emt 0:00:00] Inhibits Re8.} 50. Ra8 {[%emt 0:00:02]} Rxh7 {[%emt 0:00:01][%mdl 8192]} (50... Kg7 $16) 51. Rxa7+ {[%emt 0:00:01]} Kg6 {[%emt 0:00:02]} 52. Rxh7 $1 {[%emt 0:00:07]} (52. Rxa5 Re7+ 53. Kd2 Rd7 $11) 52... Kxh7 {[%emt 0:00:00] KP-KP} 53. Kd3 {[%emt 0:00:01]} Kg7 {[%emt 0:00:07]} 54. Kc3 $2 {[%emt 0:00:00]} (54. Kc2 {mates} Kf7 55. Kb3 Ke7 56. Ka4 Kd6 57. Kxa5 Kc7 58. Kb5 Kd7 59. Kc5) 54... Kf7 {[%emt 0:00:00]} 55. Kb3 {[%emt 0:00:01]} Ke7 {[%emt 0:00:03]} 56. Ka4 {[%emt 0:00:01]} Kd7 {[%emt 0:00:03]} 57. Kxa5 $11 {[%emt 0:00:00] White threatens Kb5 and mate. K3P-K3P} Kc7 $2 {[%emt 0:00:11][%mdl 8192] [#]} (57... f5 $11 58. Kb6 (58. gxf5 Ke7 $11) 58... fxg4 59. fxg4 Kd6 60. Kb5 Ke7 61. Kc5 Ke6 62. Kc6 Ke7 63. Kxd5 Kd7) 58. Kb5 $1 {[%emt 0:00:01]} Kd6 {[%emt 0:00:01]} 59. Kb6 {[%emt 0:00:01] Kb5 would kill now.} Kd7 $2 {[%emt 0:00:00][%mdl 8192]} (59... Ke7 $11 60. Kc6 Ke6 61. Kc5 Kf7 62. Kxd5 Kg7 63. Kc6 Kg6 64. Kd7 Kf7) 60. Kc5 {[%emt 0:00:00] White mates.} Ke6 {[%emt 0:00:01]} 61. Kc6 {[%emt 0:00:01]} f5 {[%emt 0:00:02] [#]} 62. Kc5 $1 {[%emt 0:00:01]} ({Worse is} 62. gxf5+ Kxf5 63. Kxd5 Kf4 $11) 62... fxg4 {[%emt 0:00:01]} 63. fxg4 {[%emt 0:00:00]} Ke7 {[%emt 0:00:01]} 64. Kxd5 {[%emt 0:00:01]} Kd7 {[%emt 0:00:00]} 65. Ke5 {[%emt 0:00:02] Weighted Error Value: White=0.17 (very precise) /Black=0.37} 1-0